bitfinex-derivatives/quotes_SOLF0:USTF0_20251024
["timestamp","ask_amount","ask_price","bid_price","bid_amount"]
[1761340372541,2.59,193.5,193.46,2.8]
[1761340373939,2.67291776,193.51,193.46,2.8]
[1761340374137,5.26291776,193.51,193.46,2.8]
[1761340374741,4.29953387,193.5,193.46,2.8]
[1761340378146,4.29953387,193.5,193.46,4.81710274]
[1761340378448,4.29953387,193.5,193.47,2.68]
[1761340382250,2.59,193.5,193.47,2.68]
[1761340388746,2.59,193.5,193.47,7.49710274]
[1761340388948,2.59,193.5,193.48,2.81]
[1761340395771,2.62,193.54,193.48,2.81]
[1761340395975,2.62,193.54,193.49,2.81]
[1761340396674,2.62,193.54,193.5,2.81]
[1761340398777,2.62,193.55,193.51,2.81]
[1761340399071,4.79779841,193.59,193.51,4.6501]
[1761340399072,1.70953387,193.58,193.51,4.6501]
[1761340399270,2.62,193.59,193.52,2.81]
[1761340399572,1.70953387,193.58,193.52,2.81]
[1761340399778,4.32953387,193.58,193.52,2.81]
[1761340400078,2.62,193.58,193.52,2.81]
[1761340400974,2.62,193.58,193.52,4.6499]
[1761340401178,2.62,193.58,193.53,2.81]
[1761340405270,2.62,193.58,193.54,2.81]
[1761340411188,2.62,193.64,193.58,2.81]
[1761340411389,2.62,193.64,193.57,1.70953387]
[1761340411390,2.62,193.64,193.6,2.81]
[1761340412885,1.70953387,193.63,193.55,2.81]
[1761340413194,2.62,193.59,193.55,2.81]
[1761340414201,2.62,193.59,193.53,4.6496]
[1761340414202,1.70953387,193.56,193.53,7.4596]
[1761340414492,4.32953387,193.56,193.53,7.4596]
[1761340415082,2.62,193.56,193.54,2.81]
[1761340416184,1.70953387,193.58,193.54,2.81]
[1761340416393,4.32953387,193.58,193.54,2.81]
[1761340418297,2.64,193.57,193.54,2.81]
[1761340429408,2.64,193.57,193.51,9.46730274]
[1761340429611,2.64,193.57,193.52,2.66]
[1761340437105,2.64,193.57,193.52,7.3099]
[1761340440020,2.58,193.62,193.53,2.72]
[1761340440312,2.58,193.61,193.53,2.72]
[1761340445119,2.58,193.6,193.53,2.72]
[1761340446822,2.58,193.6,193.52,4.83545551]
[1761340447119,2.58,193.6,193.51,2.72]
[1761340447120,2.58,193.6,193.53,2.72]
[1761340447307,2.58,193.59,193.53,2.72]
[1761340450218,2.58,193.59,193.51,4.83545551]
[1761340450424,2.81,193.57,193.49,2.63]
[1761340450616,2.81,193.57,193.49,7.46545551]
[1761340450818,2.81,193.57,193.49,2.63]
[1761340455319,2.81,193.56,193.46,7.4638827]
[1761340455517,2.81,193.56,193.46,2.63]
[1761340461930,2.81,193.53,193.46,2.63]
[1761340464527,2.81,193.53,193.43,2.63]
[1761340465224,2.66873819,193.51,193.43,2.63]
[1761340465432,2.81,193.5,193.43,2.63]
[1761340466137,2.81,193.5,193.4,2.63]
[1761340466138,2.81,193.49,193.4,2.63]
[1761340467127,2.81,193.49,193.41,2.63]
[1761340479463,2.59,193.47,193.41,2.63]
[1761340482858,2.66873819,193.51,193.41,2.63]
[1761340483062,2.59,193.5,193.41,2.63]
[1761340489959,2.59,193.5,193.41,4.6525]
[1761340490161,2.59,193.5,193.42,2.62]
[1761340490963,2.59,193.5,193.43,4.652]
[1761340491161,2.59,193.5,193.44,2.62]
[1761340496670,4.29972358,193.5,193.44,2.62]
[1761340498070,2.86,193.49,193.44,2.62]
[1761340506074,2.86,193.49,193.44,4.6518]
[1761340506275,2.86,193.49,193.45,2.67]
[1761340506478,9.38014077,193.54,193.45,2.67]
[1761340506675,4.56972358,193.54,193.48,2.67]
[1761340507373,1.70972358,193.51,193.46,4.82193122]
[1761340507572,2.86,193.5,193.46,2.67]
[1761340508077,4.36972358,193.48,193.46,2.67]
[1761340508272,2.66,193.47,193.41,7.50193122]
[1761340508467,1.70972358,193.42,193.39,7.50193122]
[1761340508670,1.70972358,193.4,193.37,4.82193122]
[1761340508868,1.70972358,193.4,193.35,6.31692062]
[1761340508869,2.66,193.39,193.34,4.82193122]
[1761340509072,2.66,193.36,193.34,4.82193122]
[1761340509273,2.66,193.36,193.33,2.68]
[1761340509679,1.70972358,193.37,193.33,2.68]
[1761340511675,4.36972358,193.37,193.33,2.68]
[1761340512278,1.70972358,193.37,193.33,2.68]
[1761340513675,2.66,193.42,193.34,2.68]
[1761340514770,4.41962324,193.43,193.36,2.68]
[1761340514974,4.36972358,193.45,193.36,2.68]
[1761340515179,2.66,193.44,193.36,2.68]
[1761340515580,2.66,193.44,193.37,2.68]
[1761340516682,2.66,193.44,193.39,2.68]
[1761340518486,4.36972358,193.47,193.39,2.68]
[1761340519387,2.66,193.46,193.39,2.68]
[1761340522886,1.70972358,193.47,193.41,2.68]
[1761340523785,2.66,193.47,193.41,2.68]
[1761340524983,2.66,193.47,193.41,7.3327]
[1761340525477,15.0,193.49,193.42,2.68]
[1761340525682,4.36972358,193.5,193.44,2.68]
[1761340526085,2.66,193.5,193.44,2.68]
[1761340527889,1.70972358,193.49,193.44,2.68]
[1761340528186,2.66,193.48,193.44,2.68]
[1761340530487,4.41817973,193.49,193.44,2.68]
[1761340530688,4.41817973,193.49,193.35,9.47334289]
[1761340530689,4.41817973,193.5,193.46,2.68]
[1761340530892,2.66,193.51,193.46,2.68]
[1761340531200,2.66,193.5,193.46,2.68]
[1761340538594,2.66,193.5,193.47,2.63]
[1761340541996,2.76,193.51,193.47,2.63]
[1761340542694,2.76,193.5,193.47,2.63]
[1761340543691,7.17817973,193.51,193.47,2.63]
[1761340544094,2.76,193.51,193.47,2.63]
[1761340546404,2.76,193.51,193.48,2.63]
[1761340546800,6.27180875,193.52,193.48,2.63]
[1761340547001,4.46972358,193.52,193.48,2.63]
[1761340547200,9.03180875,193.52,193.48,2.63]
[1761340547405,4.46972358,193.52,193.48,2.63]
[1761340548201,2.76,193.51,193.48,2.63]
[1761340549405,1.70972358,193.52,193.49,2.63]
[1761340549904,4.46972358,193.57,193.49,2.63]
[1761340550107,4.56238485,193.56,193.53,2.63]
[1761340551104,4.46972358,193.57,193.54,2.63]
[1761340553108,2.76,193.57,193.54,2.63]
[1761340553805,4.56238485,193.58,193.54,4.6494]
[1761340554007,2.76,193.59,193.55,2.63]
[1761340554999,2.76,193.59,193.56,4.6491]
[1761340555206,2.76,193.59,193.57,2.63]
[1761340559915,2.84,193.61,193.57,2.63]
[1761340560116,2.84,193.6,193.57,2.63]
[1761340560419,7.3980098,193.6,193.57,2.63]
[1761340560721,2.84,193.62,193.57,2.63]
[1761340560920,2.84,193.6,193.57,2.63]
[1761340561121,2.84,193.59,193.56,7.4991]
[1761340562515,2.84,193.59,193.56,4.6491]
[1761340562715,2.84,193.59,193.57,2.85]
[1761340564011,2.84,193.59,193.56,4.6491]
[1761340564216,2.84,193.59,193.56,7.4991]
[1761340565918,2.84,193.59,193.52,2.85]
[1761340566118,2.84,193.54,193.44,2.85]
[1761340566320,2.84,193.53,193.44,2.85]
[1761340566516,2.84,193.53,193.49,2.85]
[1761340574322,4.6505717,193.53,193.49,2.85]
[1761340574526,2.79,193.53,193.49,2.85]
[1761340575433,2.79,193.52,193.49,2.85]
[1761340576031,2.79,193.55,193.49,2.85]
[1761340576338,2.79,193.53,193.49,2.85]
[1761340576535,7.44155572,193.53,193.49,2.85]
[1761340576736,2.79,193.53,193.49,2.85]
[1761340577133,2.79,193.52,193.49,2.85]
[1761340577633,4.65407664,193.54,193.49,2.85]
[1761340577840,2.79,193.56,193.51,2.81]
[1761340578032,2.79,193.54,193.51,2.81]
[1761340578233,2.79,193.57,193.51,2.81]
[1761340578434,2.79,193.55,193.51,2.81]
[1761340579438,7.44602121,193.54,193.51,2.81]
[1761340579630,2.79,193.54,193.51,2.81]
[1761340580434,7.44602121,193.54,193.51,2.81]
[1761340580635,2.79,193.54,193.51,2.81]
[1761340581440,7.44634195,193.54,193.51,2.81]
[1761340581641,2.79,193.54,193.51,2.81]
[1761340583640,15.75649525,193.76,193.46,2.66801147]
[1761340583641,4.65784074,193.57,193.52,2.66801147]
[1761340583838,2.79,193.62,193.42,24.8146]
[1761340583839,2.79,193.62,193.53,2.81]
[1761340584146,2.79,193.6,193.53,2.81]
[1761340584447,2.79,193.58,193.5,7.4603]
[1761340584635,2.79,193.56,193.5,7.4603]
[1761340584836,7.44806749,193.56,193.5,4.6503]
[1761340585136,2.79,193.56,193.51,2.81]
[1761340586342,2.79,193.55,193.51,2.81]
[1761340588742,7.32454944,193.55,193.51,2.81]
[1761340588942,2.79,193.55,193.51,2.81]
[1761340589644,2.79,193.55,193.52,2.81]
[1761340590037,7.32454944,193.55,193.52,2.81]
[1761340590236,2.79,193.55,193.52,2.81]
[1761340591047,4.53454944,193.54,193.5,2.81]
[1761340591247,7.32454944,193.55,193.5,2.81]
[1761340591448,4.53454944,193.54,193.5,2.81]
[1761340591943,4.53454944,193.54,193.5,7.4604]
[1761340592148,4.53454944,193.54,193.51,2.81]
[1761340592350,2.79,193.55,193.51,2.81]
[1761340592546,7.32462163,193.54,193.51,2.81]
[1761340592748,2.79,193.54,193.51,2.81]
[1761340595848,4.81041719,193.6,193.51,2.81]
[1761340596045,2.79,193.58,193.51,2.81]
[1761340596244,2.79,193.56,193.51,2.81]
[1761340596446,7.32599534,193.55,193.51,2.81]
[1761340596739,4.53599534,193.54,193.51,2.81]
[1761340596939,2.79,193.55,193.51,2.81]
[1761340597143,4.53580997,193.54,193.51,2.81]
[1761340597443,2.79,193.55,193.51,2.81]
[1761340597639,4.53488511,193.54,193.51,2.81]
[1761340597850,4.53488511,193.59,193.53,2.8]
[1761340598153,4.81041719,193.63,193.53,2.8]
[1761340598154,7.36488511,193.58,193.53,2.8]
[1761340598454,4.53488511,193.57,193.53,2.8]
[1761340598655,2.83,193.58,193.53,2.8]
[1761340598954,4.5334851,193.57,193.53,7.4496]
[1761340599155,2.83,193.58,193.54,2.8]
[1761340599344,4.5334333,193.57,193.54,2.8]
[1761340599541,4.53354252,193.56,193.54,2.8]
[1761340599756,2.83,193.58,193.54,2.8]
[1761340599950,4.53629033,193.57,193.54,2.8]
[1761340600151,4.53629033,193.56,193.54,2.8]
[1761340600345,2.83,193.58,193.54,2.8]
[1761340600856,4.53720766,193.57,193.54,2.8]
[1761340601155,2.83,193.61,193.54,2.8]
[1761340601458,7.30255,193.6,193.54,2.8]
[1761340601856,4.47255,193.59,193.54,2.8]
[1761340602043,2.83,193.6,193.54,2.8]
[1761340602656,2.83,193.58,193.54,2.8]
[1761340602953,4.47245406,193.57,193.54,2.8]
[1761340603256,4.47292703,193.56,193.54,2.8]
[1761340603556,4.47292703,193.57,193.54,2.8]
[1761340603751,4.47292703,193.56,193.54,2.8]
[1761340603943,4.47292703,193.57,193.54,2.8]
[1761340604147,4.47292703,193.56,193.54,2.8]
[1761340604350,4.47292703,193.57,193.54,2.8]
[1761340604550,4.47292703,193.56,193.54,2.8]
[1761340604750,4.47292703,193.57,193.54,2.8]
[1761340604946,4.47292703,193.56,193.54,2.8]
[1761340605152,4.47292703,193.57,193.54,2.8]
[1761340605349,4.47292703,193.56,193.54,2.8]
[1761340605550,2.83,193.58,193.54,2.8]
[1761340605551,4.47292703,193.57,193.54,2.8]
[1761340605751,4.47292703,193.56,193.54,2.8]
[1761340605955,4.47292703,193.57,193.54,2.8]
[1761340606157,4.47292703,193.56,193.54,2.8]
[1761340606356,4.47292703,193.57,193.54,2.8]
[1761340606651,4.47292703,193.56,193.55,2.8]
[1761340606858,2.83,193.59,193.55,2.8]
[1761340607044,4.47292703,193.58,193.55,2.8]
[1761340607244,2.83,193.59,193.55,2.8]
[1761340607245,4.47292703,193.57,193.55,2.8]
[1761340607459,2.83,193.59,193.55,2.8]
[1761340607654,7.30453346,193.58,193.54,4.6494]
[1761340607964,4.47453346,193.57,193.55,2.8]
[1761340608146,4.81041719,193.62,193.56,2.8]
[1761340608350,2.83,193.6,193.56,2.8]
[1761340608553,4.47469042,193.59,193.56,2.8]
[1761340608753,4.47469042,193.58,193.56,2.8]
[1761340608949,2.83,193.6,193.56,2.8]
[1761340609152,4.47509694,193.59,193.56,2.8]
[1761340609457,4.47509694,193.58,193.56,2.8]
[1761340609757,2.83,193.6,193.56,2.8]
[1761340609958,4.47511765,193.59,193.56,2.8]
[1761340610156,4.47511765,193.58,193.56,2.8]
[1761340610459,2.83,193.6,193.56,2.8]
[1761340610658,4.47569974,193.59,193.56,2.8]
[1761340610956,4.47569974,193.58,193.56,2.8]
[1761340611153,2.83,193.6,193.56,2.8]
[1761340611352,2.83,193.58,193.54,2.8]
[1761340611559,7.30601842,193.57,193.54,2.8]
[1761340611859,7.30601842,193.56,193.53,4.6497]
[1761340612058,2.83,193.56,193.53,7.4497]
[1761340613756,2.83,193.56,193.53,4.6497]
[1761340614054,2.83,193.56,193.54,2.8]
[1761340615453,2.83,193.56,193.52,4.57]
[1761340615657,2.83,193.54,193.52,7.37]
[1761340615957,2.83,193.57,193.52,7.37]
[1761340616159,2.83,193.55,193.52,7.37]
[1761340617860,4.47648457,193.54,193.52,4.57]
[1761340618065,7.26607432,193.53,193.52,4.57]
[1761340619561,2.79,193.53,193.52,4.57]
[1761340621164,7.20393291,193.53,193.52,4.57]
[1761340625555,4.41393291,193.53,193.52,7.23]
[1761340625762,2.79,193.55,193.53,2.66]
[1761340626059,7.20299123,193.54,193.52,7.23]
[1761340626264,2.79,193.54,193.52,7.23]
[1761340626563,7.20299123,193.54,193.52,7.23]
[1761340626766,2.79,193.54,193.52,7.23]
[1761340627069,7.20299123,193.54,193.52,7.23]
[1761340627274,2.79,193.54,193.52,7.23]
[1761340630167,2.82,193.56,193.53,2.78]
[1761340630469,7.23299123,193.56,193.53,2.78]
[1761340630668,2.82,193.56,193.53,2.78]
[1761340631365,2.82,193.55,193.52,7.4299]
[1761340631570,2.82,193.55,193.53,4.33]
[1761340631970,2.82,193.55,193.53,7.11]
[1761340633371,4.41264389,193.56,193.54,2.78]
[1761340633572,4.41264389,193.57,193.54,2.78]
[1761340633872,7.23264389,193.56,193.54,2.78]
[1761340634067,2.82,193.56,193.54,2.78]
[1761340634272,7.23264389,193.56,193.54,2.78]
[1761340634472,2.82,193.56,193.54,2.78]
[1761340634674,7.23264389,193.56,193.54,2.78]
[1761340634866,2.82,193.56,193.54,2.78]
[1761340635175,7.23264389,193.56,193.54,2.78]
[1761340635474,2.82,193.56,193.54,2.78]
[1761340635873,7.23247169,193.56,193.54,2.78]
[1761340636171,2.82,193.56,193.54,2.78]
[1761340636368,7.23247169,193.56,193.54,2.78]
[1761340636672,2.82,193.56,193.54,2.78]
[1761340636861,7.23247169,193.56,193.54,2.78]
[1761340637066,2.82,193.56,193.54,2.78]
[1761340637471,7.23247169,193.57,193.54,2.78]
[1761340637667,4.41247169,193.56,193.54,2.78]
[1761340638475,7.23247169,193.56,193.54,2.78]
[1761340638676,2.82,193.58,193.54,2.78]
[1761340638872,7.23247169,193.57,193.54,2.78]
[1761340639079,4.41247169,193.56,193.54,2.78]
[1761340639376,2.82,193.57,193.54,2.78]
[1761340639882,7.23247169,193.57,193.54,2.78]
[1761340640173,2.82,193.57,193.54,2.78]
[1761340640676,7.23247169,193.57,193.54,2.78]
[1761340640877,2.82,193.57,193.54,2.78]
[1761340641275,7.23247169,193.57,193.54,2.78]
[1761340641475,2.82,193.57,193.54,2.78]
[1761340641879,7.23247169,193.57,193.54,2.78]
[1761340642074,2.82,193.57,193.54,2.78]
[1761340642481,7.23247169,193.57,193.54,2.78]
[1761340642678,2.82,193.57,193.54,2.78]
[1761340643073,7.23247169,193.57,193.54,2.78]
[1761340643279,2.82,193.57,193.54,2.78]
[1761340643672,7.23247169,193.57,193.54,2.78]
[1761340643880,2.82,193.57,193.54,2.78]
[1761340644381,7.23247169,193.57,193.54,2.78]
[1761340644581,2.82,193.57,193.54,2.78]
[1761340644981,7.23247169,193.57,193.54,2.78]
[1761340645183,2.82,193.57,193.54,2.78]
[1761340645682,7.23247169,193.57,193.54,2.78]
[1761340645885,2.82,193.57,193.54,2.78]
[1761340646382,7.23247169,193.57,193.54,2.78]
[1761340646585,2.82,193.56,193.54,2.78]
[1761340652186,2.82,193.56,193.53,8.9797]
[1761340652391,2.82,193.56,193.54,2.78]
[1761340658487,2.82,193.56,193.54,7.35]
[1761340659295,4.41247169,193.55,193.54,7.35]
[1761340660898,2.82,193.56,193.54,7.35]
[1761340661599,7.23247169,193.56,193.54,7.35]
[1761340661898,2.82,193.56,193.54,7.35]
[1761340663000,7.18929205,193.56,193.54,7.35]
[1761340663201,2.82,193.56,193.54,7.35]
[1761340663700,2.82,193.56,193.54,7.29]
[1761340664001,7.18929205,193.56,193.54,7.29]
[1761340664301,2.82,193.56,193.54,7.29]
[1761340665900,8.81756973,193.55,193.54,4.57]
[1761340668402,2.74,193.54,193.51,5.48]
[1761340668602,4.44827768,193.52,193.51,5.48]
[1761340668801,8.81756973,193.52,193.51,5.48]
[1761340669595,7.10929205,193.52,193.51,5.48]
[1761340669912,2.74,193.6,193.52,2.72]
[1761340670112,2.74,193.6,193.51,8.22827768]
[1761340670113,2.74,193.6,193.56,2.72]
[1761340670907,2.74,193.64,193.58,2.72]
[1761340675516,2.74,193.64,193.59,2.72]
[1761340675812,2.74,193.64,193.6,2.72]
[1761340680108,2.58,193.68,193.6,2.72]
[1761340683303,2.6666822,193.65,193.56,2.61]
[1761340683506,2.58,193.61,193.53,2.61]
[1761340684113,2.58,193.58,193.51,10.31137226]
[1761340684411,2.58,193.58,193.51,5.48]
[1761340686313,28.62235352,193.65,193.51,5.48]
[1761340686314,2.58,193.55,193.51,5.48]
[1761340687914,2.58,193.6,193.52,2.61]
[1761340688113,7.19807991,193.66,193.59,2.6666822]
[1761340688318,2.58,193.66,193.6,2.61]
[1761340688522,2.58,193.66,193.62,2.61]
[1761340688712,2.58,193.73,193.63,7.29458066]
[1761340688907,2.58,193.73,193.64,4.68458066]
[1761340689111,2.58,193.73,193.65,4.68458066]
[1761340689318,2.58,193.73,193.66,4.68458066]
[1761340689516,2.58,193.73,193.67,4.68458066]
[1761340689720,2.58,193.73,193.68,4.68458066]
[1761340690013,2.58,193.73,193.69,4.68458066]
[1761340690222,2.58,193.73,193.7,4.68458066]
[1761340690411,2.58,193.73,193.63,2.61]
[1761340690616,2.58,193.73,193.64,4.67936698]
[1761340690919,2.58,193.73,193.65,4.67936698]
[1761340691111,2.58,193.73,193.66,4.67936698]
[1761340691322,2.58,193.73,193.67,4.67936698]
[1761340691614,2.58,193.73,193.68,4.67936698]
[1761340691811,2.58,193.73,193.69,4.67936698]
[1761340692122,2.58,193.73,193.63,2.61]
[1761340692315,2.58,193.73,193.64,4.67593045]
[1761340692511,2.58,193.73,193.65,4.67593045]
[1761340692715,2.58,193.73,193.66,4.67593045]
[1761340692918,2.58,193.73,193.67,4.67593045]
[1761340693125,2.58,193.73,193.68,4.67593045]
[1761340693315,2.58,193.73,193.69,4.67593045]
[1761340693511,2.58,193.73,193.64,5.59]
[1761340693512,2.58,193.73,193.7,4.67593045]
[1761340693716,2.58,193.73,193.71,4.67593045]
[1761340693920,2.58,193.73,193.65,5.2766822]
[1761340693921,2.58,193.73,193.66,2.61]
[1761340694217,2.58,193.73,193.67,7.30822019]
[1761340694518,2.58,193.73,193.68,4.69822019]
[1761340694714,2.58,193.73,193.65,5.2766822]
[1761340694715,2.58,193.73,193.69,4.69822019]
[1761340694919,2.58,193.73,193.7,4.69822019]
[1761340695128,2.58,193.73,193.65,2.61]
[1761340695424,2.58,193.73,193.66,4.69485562]
[1761340695613,2.58,193.73,193.67,4.69485562]
[1761340695815,2.58,193.73,193.68,4.69485562]
[1761340696017,2.58,193.73,193.69,4.69485562]
[1761340696214,2.58,193.73,193.7,4.69485562]
[1761340696523,2.58,193.73,193.65,2.61]
[1761340696726,2.58,193.73,193.67,2.61]
[1761340696926,2.58,193.73,193.69,2.61]
[1761340697220,2.58,193.73,193.7,7.30356947]
[1761340697421,2.58,193.73,193.71,4.69356947]
[1761340697721,2.58,193.73,193.72,4.69356947]
[1761340698118,2.58,193.79,193.72,4.69356947]
[1761340698313,2.58,193.79,193.7,2.61]
[1761340698522,2.58,193.79,193.71,4.6892862]
[1761340698720,2.58,193.79,193.72,4.6892862]
[1761340698920,2.58,193.79,193.7,2.61]
[1761340699121,2.58,193.79,193.71,4.68937246]
[1761340699326,2.58,193.79,193.72,4.68937246]
[1761340699522,2.58,193.79,193.73,4.68937246]
[1761340699825,2.58,193.79,193.7,2.61]
[1761340700021,2.58,193.79,193.71,4.68676666]
[1761340700321,2.58,193.79,193.72,4.68676666]
[1761340700526,2.58,193.79,193.73,4.68676666]
[1761340700718,2.58,193.79,193.74,7.29676666]
[1761340700914,2.58,193.79,193.74,2.61]
[1761340701820,2.58,193.79,193.75,7.29172868]
[1761340702027,2.58,193.79,193.75,2.61]
[1761340703428,2.58,193.84,193.77,2.61]
[1761340703723,2.58,193.84,193.74,2.61]
[1761340703724,2.6666822,193.83,193.74,2.61]
[1761340703930,2.58,193.82,193.75,7.28620928]
[1761340704130,2.58,193.82,193.76,7.28620928]
[1761340704329,2.58,193.82,193.76,2.61]
[1761340707426,2.58,193.79,193.71,135.1059513]
[1761340707727,2.58,193.79,193.72,4.67148575]
[1761340707927,2.58,193.79,193.73,4.67148575]
[1761340708129,2.58,193.79,193.74,4.67148575]
[1761340708333,2.58,193.79,193.71,130.4605513]
[1761340708529,2.58,193.79,193.72,4.67144352]
[1761340708830,2.58,193.79,193.73,4.67144352]
[1761340709029,2.58,193.79,193.74,4.67144352]
[1761340709232,2.58,193.79,193.71,130.4605513]
[1761340709433,2.58,193.79,193.72,4.67100409]
[1761340709629,13.42,193.84,193.71,127.8505513]
[1761340709630,2.58,193.76,193.71,127.8505513]
[1761340709930,2.58,193.73,193.64,8.2]
[1761340710230,2.58,193.73,193.65,7.28425767]
[1761340710433,2.58,193.73,193.66,4.67425767]
[1761340710734,2.58,193.73,193.65,2.61]
[1761340710735,2.58,193.73,193.67,4.67425767]
[1761340710925,2.58,193.73,193.68,4.67425767]
[1761340711120,2.58,193.73,193.65,2.61]
[1761340711322,5.2466822,193.72,193.66,4.67646086]
[1761340711532,2.58,193.71,193.67,4.67646086]
[1761340711725,2.58,193.71,193.68,4.67646086]
[1761340711926,2.58,193.71,193.67,2.61]
[1761340712128,2.58,193.71,193.68,4.67646064]
[1761340712430,2.58,193.71,193.69,4.67772276]
[1761340712733,2.58,193.71,193.67,2.61]
[1761340713035,2.58,193.71,193.68,4.67772018]
[1761340713231,2.58,193.71,193.69,4.67772018]
[1761340713431,2.58,193.71,193.7,4.67772018]
[1761340714331,2.58,193.71,193.7,4.68323421]
[1761340715934,2.58,193.77,193.71,2.61]
[1761340716236,2.58,193.8,193.73,2.61]
[1761340716440,2.58,193.8,193.74,7.29323421]
[1761340716626,2.58,193.8,193.75,4.68323421]
[1761340716827,2.58,193.8,193.74,2.61]
[1761340717033,2.58,193.8,193.75,7.28796102]
[1761340717238,2.58,193.8,193.75,2.61]
[1761340718138,2.58,193.8,193.76,7.35709754]
[1761340718338,2.58,193.8,193.77,4.67709754]
[1761340718638,2.58,193.8,193.78,4.67709754]
[1761340718828,2.7,193.85,193.76,2.68]
[1761340719033,2.7,193.85,193.77,4.67601108]
[1761340719236,2.7,193.85,193.78,4.67601108]
[1761340719536,2.7,193.85,193.76,2.68]
[1761340719728,2.7,193.85,193.77,4.67557738]
[1761340719929,2.7,193.85,193.78,4.67557738]
[1761340720135,2.7,193.85,193.79,4.67557738]
[1761340720333,2.7,193.85,193.76,2.68]
[1761340720537,2.7,193.85,193.77,4.67484961]
[1761340720732,2.7,193.85,193.78,4.67484961]
[1761340720941,2.7,193.85,193.79,4.67484961]
[1761340721142,2.7,193.85,193.76,2.68]
[1761340721342,2.7,193.85,193.77,4.67385887]
[1761340721638,2.7,193.85,193.78,4.67385887]
[1761340721844,2.7,193.85,193.79,4.67385887]
[1761340722142,2.7,193.85,193.76,2.68]
[1761340722441,2.7,193.85,193.77,7.3532993]
[1761340722643,2.7,193.85,193.78,4.6732993]
[1761340722839,2.7,193.85,193.79,4.6732993]
[1761340723038,2.7,193.85,193.77,2.68]
[1761340723241,2.7,193.85,193.78,4.67328825]
[1761340723441,2.7,193.85,193.79,4.67328825]
[1761340723641,2.7,193.85,193.77,2.68]
[1761340723942,2.7,193.85,193.78,4.67262081]
[1761340724140,2.7,193.85,193.79,4.67262081]
[1761340724339,2.7,193.85,193.8,4.67205842]
[1761340724644,2.7,193.85,193.77,2.68]
[1761340724941,2.7,193.85,193.78,4.67202424]
[1761340725142,2.7,193.85,193.79,4.67202424]
[1761340725441,2.7,193.85,193.77,2.68]
[1761340725640,2.7,193.85,193.78,4.67161431]
[1761340725831,2.7,193.85,193.79,4.67161431]
[1761340726029,2.7,193.85,193.8,4.67161431]
[1761340726234,2.7,193.85,193.77,2.68]
[1761340726538,2.7,193.85,193.78,4.67065501]
[1761340726738,2.6666822,193.84,193.73,2.68]
[1761340726932,2.7,193.83,193.74,7.35176297]
[1761340727137,2.7,193.83,193.75,4.67176297]
[1761340727333,2.7,193.83,193.76,4.67176297]